fUST/lending_fUST_20250814
["ID","MTS","AMOUNT","RATE_DAILY","PERIOD"]
[379097971,1755137442867,-262.56739523,0.00021664,2]
[379097972,1755137442876,-2500.0,0.00021664,2]
[379097973,1755137442885,-5506.0,0.00021744,2]
[379097974,1755137442895,-300.0,0.00021802,2]
[379097975,1755137442904,-281.329336,0.00021912,2]
[379097976,1755137442913,-800.0,0.00021916,2]
[379097977,1755137442975,-245.424585,0.00021917,2]
[379097978,1755137442985,-290.904434,0.00021917,2]
[379097979,1755137442994,-290.904434,0.00021917,2]
[379097980,1755137443003,-151.0,0.00021917,2]
[379097981,1755137443012,-151.0,0.00021917,2]
[379097982,1755137443021,-151.0,0.00021917,2]
[379097983,1755137443031,-151.0,0.00021917,2]
[379097984,1755137443039,-151.0,0.00021917,2]
[379097985,1755137443049,-212.074647,0.00021917,2]
[379097986,1755137443058,-212.074647,0.00021917,2]
[379097987,1755137443067,-745.316575,0.00021917,2]
[379097988,1755137443076,-745.316582,0.00021917,2]
[379097989,1755137443085,-315.097954,0.00021917,2]
[379097990,1755137443094,-315.097963,0.00021917,2]
[379097991,1755137443103,-205.694368,0.00021917,2]
[379097992,1755137443113,-205.694375,0.00021917,2]
[379097993,1755137443122,-339.860798,0.00021917,2]
[379097994,1755137443131,-339.86079,0.00021917,2]
[379097995,1755137443140,-460.0,0.00021917,2]
[379097996,1755137443150,-460.0,0.00021917,2]
[379097997,1755137443159,-483.84,0.00021917,2]
[379097998,1755137443169,-460.0,0.00021917,2]
[379098000,1755137443178,-460.0,0.00021917,2]
[379098001,1755137443187,-460.0,0.00021917,2]
[379098002,1755137443196,-460.0,0.00021917,2]
[379098003,1755137443205,-1010.24,0.00021917,2]
[379098004,1755137443214,-460.0,0.00021917,2]
[379098005,1755137443223,-460.0,0.00021917,2]
[379098006,1755137443232,-460.0,0.00021917,2]
[379098007,1755137443242,-460.0,0.00021917,2]
[379098008,1755137443252,-613.77,0.00021917,2]
[379098009,1755137443261,-610.78,0.00021917,2]
[379098010,1755137443270,-460.0,0.00021917,2]
[379098011,1755137443279,-698.5,0.00021917,2]
[379098012,1755137443288,-460.0,0.00021917,2]
[379098013,1755137443298,-857.56,0.00021917,2]
[379098014,1755137443307,-950.52,0.00021917,2]
[379098015,1755137443316,-520.65,0.00021917,2]
[379098017,1755137443325,-460.0,0.00021917,2]
[379098019,1755137443334,-460.0,0.00021917,2]
[379098020,1755137443343,-460.0,0.00021917,2]
[379098021,1755137443352,-645.8,0.00021917,2]
[379098022,1755137443361,-460.0,0.00021917,2]
[379098023,1755137443370,-460.0,0.00021917,2]
[379098024,1755137443379,-599.29,0.00021917,2]
[379098025,1755137443388,-1020.49,0.00021917,2]
[379098026,1755137443398,-174.30259608,0.00021917,2]
[379098027,1755137443512,-264.0,0.00021917,2]
[379098030,1755137446040,-21.69740392,0.00021917,2]
[379098031,1755137446050,-591.9464368,0.00021917,2]
[379098032,1755137446059,-6.34768693,0.00021917,2]
[379098037,1755137497937,526.0,0.0002191,120]
[379098038,1755137498020,526.0,0.000219,120]
[379098040,1755137499149,150.5,0.0002191,120]
[379098041,1755137499509,526.0,0.0002189,120]
[379098042,1755137500228,150.5,0.000219,120]
[379098043,1755137500284,526.0,0.00023552,120]
[379098044,1755137500424,461.0,0.0002191,120]
[379098045,1755137500791,526.0,0.00023542,120]
[379098046,1755137501014,150.5,0.0002189,120]
[379098047,1755137501467,150.5,0.00023552,120]
[379098048,1755137501698,461.0,0.000219,120]
[379098049,1755137501774,526.0,0.00023532,120]
[379098050,1755137502075,182.35,0.00023542,120]
[379098051,1755137502149,461.0,0.0002189,120]
[379098052,1755137502379,526.0,0.0002479,120]
[379098053,1755137502726,461.0,0.00023552,120]
[379098054,1755137502876,526.0,0.0002478,120]
[379098055,1755137503295,461.0,0.00023542,120]
[379098056,1755137503820,461.0,0.00023532,120]
[379098057,1755137504288,461.0,0.0002479,120]
[379098058,1755137504831,461.0,0.0002478,120]
[379098068,1755137523565,370.97501229,0.0001901,6]
[379098092,1755137564143,154.190632,0.00017967,2]
[379098093,1755137564463,154.190632,0.00017392,2]
[379098094,1755137564794,154.190632,0.00016817,2]
[379098095,1755137566891,154.190632,0.00016241,2]
[379098096,1755137567857,154.190632,0.00018395,7]
[379098097,1755137568157,154.190632,0.00017252,7]
[379098098,1755137568466,154.190632,0.00016109,7]
[379098099,1755137570084,154.190632,0.00017908,20]
[379098100,1755137570406,154.190632,0.00016692,20]
[379098101,1755137570712,154.190632,0.00015476,20]
[379098103,1755137571313,154.190632,0.0002288,30]
[379098104,1755137571613,154.190632,0.0002132,30]
[379098105,1755137572365,154.190632,0.0001976,30]
[379098107,1755137573103,154.190632,0.00017996,3]
[379098108,1755137573405,154.190632,0.00017192,3]
[379098109,1755137573734,154.190632,0.00016388,3]
[379098118,1755137594904,20516.65168483,0.00018225,2]
[379098283,1755137720569,588.056094,0.00013699,2]
[379098329,1755137856035,183.72950466,0.000222,69]
[379098330,1755137861030,183.72950463,0.000222,69]
[379098345,1755137909594,150.5,0.0002191,120]
[379098346,1755137910177,150.5,0.000219,120]
[379098347,1755137910670,150.5,0.0002189,120]
[379098349,1755137911331,150.5,0.0002355,120]
[379098350,1755137911948,150.5,0.0002354,120]
[379098351,1755137912437,150.5,0.0002353,120]
[379098352,1755137912917,153.0,0.00024882,120]
[379098446,1755138149694,150.5,0.0002191,120]
[379098447,1755138150166,150.5,0.000219,120]
[379098448,1755138150642,150.5,0.0002189,120]
[379098450,1755138151150,150.5,0.0002355,120]
[379098451,1755138151760,150.5,0.0002354,120]
[379098452,1755138152469,173.41,0.0002353,120]
[379098457,1755138186957,100015.3129323,0.00017443,2]
[379098462,1755138318028,183.72950463,0.000222,69]
[379098463,1755138321691,537.0,0.00025999,120]
[379098496,1755138495778,255.256789,0.00017443,2]
[379098544,1755138579266,300.783,0.00017,2]
[379098696,1755138636517,-413.00104375,0.00018342,2]
[379098697,1755138636575,-565.8392219,0.00018342,2]
[379098747,1755138638411,-221.15973435,0.00018342,2]
[379098749,1755138638424,-439.84901884,0.00018343,2]
[379098914,1755138640236,-760.15098116,0.00018343,2]
[379098916,1755138640246,-300.0,0.00018343,2]
[379098918,1755138640255,-300.0,0.00018343,2]
[379098920,1755138640264,-3851.69302279,0.00018344,2]
[379098922,1755138640274,-421.6625995,0.00018344,2]
[379098923,1755138640283,-500.0,0.00018432,2]
[379098925,1755138640293,-253.80085445,0.00018432,2]
[379098927,1755138640303,-500.0,0.00018432,2]
[379098929,1755138640312,-500.0,0.00018432,2]
[379098931,1755138640322,-500.0,0.00018432,2]
[379098933,1755138640331,-500.0,0.00018432,2]
[379098935,1755138640340,-501.82750872,0.00018432,2]
[379098938,1755138640350,-32260.9120026,0.00018432,2]
[379098939,1755138640360,-500.0,0.0001844,2]
[379098941,1755138640369,-500.0,0.0001844,2]
[379098943,1755138640378,-620.06768601,0.0001844,2]
[379098945,1755138640388,-202.39667116,0.0001844,2]
[379098948,1755138640397,-500.0,0.0001844,2]
[379098949,1755138640407,-166.60221097,0.0001844,2]
[379098951,1755138640416,-620.06768601,0.0001844,2]
[379098953,1755138640430,-429.67184998,0.0001844,2]
[379098955,1755138640440,-270.18419753,0.0001844,2]
[379098957,1755138640449,-500.0,0.0001844,2]
[379098959,1755138640458,-620.06768601,0.0001844,2]
[379098961,1755138640471,-620.06768601,0.0001844,2]
[379098963,1755138640480,-500.0,0.0001844,2]
[379098966,1755138640490,-500.0,0.0001844,2]
[379098968,1755138640500,-620.06768601,0.0001844,2]
[379098969,1755138640510,-620.06768601,0.0001844,2]
[379098972,1755138640520,-500.0,0.0001844,2]
[379098974,1755138640529,-500.0,0.0001844,2]
[379098976,1755138640538,-620.06768601,0.0001844,2]
[379098978,1755138640547,-500.0,0.0001844,2]
[379098980,1755138640556,-620.06768601,0.0001844,2]
[379098981,1755138640566,-500.0,0.0001844,2]
[379098982,1755138640575,-620.06768601,0.0001844,2]
[379098983,1755138640585,-311.77353422,0.0001844,2]
[379098984,1755138640594,-620.06768601,0.0001844,2]
[379098985,1755138640603,-370.49064731,0.0001844,2]
[379098986,1755138640613,-620.06768601,0.0001844,2]
[379098987,1755138640622,-620.06768601,0.0001844,2]
[379098988,1755138640631,-620.06768601,0.0001844,2]
[379098989,1755138640640,-620.06768601,0.0001844,2]
[379098990,1755138640650,-620.06768601,0.0001844,2]
[379098991,1755138640659,-620.06768601,0.0001844,2]
[379098992,1755138640668,-620.06768601,0.0001844,2]
[379098993,1755138640678,-620.06768601,0.0001844,2]
[379098994,1755138640688,-620.06768601,0.0001844,2]
[379098995,1755138640698,-620.06768601,0.0001844,2]
[379098996,1755138640707,-620.06768601,0.0001844,2]
[379098997,1755138640718,-620.06768601,0.0001844,2]
[379098999,1755138640727,-620.06768601,0.0001844,2]
[379099001,1755138640736,-620.06768601,0.0001844,2]
[379099002,1755138640746,-620.06768601,0.0001844,2]
[379099003,1755138640756,-620.06768601,0.0001844,2]
[379099004,1755138640765,-620.06768601,0.0001844,2]
[379099005,1755138640775,-620.06768601,0.0001844,2]
[379099006,1755138640784,-620.06768601,0.0001844,2]
[379099007,1755138640794,-620.06768601,0.0001844,2]
[379099009,1755138640803,-620.06768601,0.0001844,2]
[379099010,1755138640812,-620.06768601,0.0001844,2]
[379099011,1755138640821,-620.06768601,0.0001844,2]
[379099012,1755138640830,-620.06768601,0.0001844,2]
[379099013,1755138640839,-620.06768601,0.0001844,2]
[379099014,1755138640848,-620.06768601,0.0001844,2]
[379099015,1755138640858,-620.06768601,0.0001844,2]
[379099016,1755138640867,-620.06768601,0.0001844,2]
[379099017,1755138640876,-620.06768601,0.0001844,2]
[379099018,1755138640885,-620.06768601,0.0001844,2]
[379099019,1755138640894,-300.04609074,0.0001844,2]
[379099020,1755138640909,-320.02159527,0.0001844,2]
[379099021,1755138640919,-620.06768601,0.0001844,2]
[379099022,1755138640928,-620.06768601,0.0001844,2]
[379099023,1755138640938,-620.06768601,0.0001844,2]
[379099024,1755138640947,-620.06768601,0.0001844,2]
[379099025,1755138640957,-620.06768601,0.0001844,2]
[379099026,1755138640966,-620.06768601,0.0001844,2]
[379099027,1755138640975,-620.06768601,0.0001844,2]
[379099028,1755138640985,-620.06768601,0.0001844,2]
[379099029,1755138640994,-620.06768601,0.0001844,2]
[379099030,1755138641004,-620.06768601,0.0001844,2]
[379099031,1755138641014,-620.06768601,0.0001844,2]
[379099032,1755138641024,-620.06768601,0.0001844,2]
[379099033,1755138641034,-620.06768601,0.0001844,2]
[379099034,1755138641044,-620.06768601,0.0001844,2]
[379099035,1755138641054,-620.06768601,0.0001844,2]
[379099036,1755138641065,-620.06768601,0.0001844,2]
[379099037,1755138641074,-620.06768601,0.0001844,2]
[379099038,1755138641084,-620.06768601,0.0001844,2]
[379099039,1755138641094,-620.06768601,0.0001844,2]
[379099040,1755138641104,-620.06768601,0.0001844,2]
[379099041,1755138641113,-620.06768601,0.0001844,2]
[379099042,1755138641123,-620.06768601,0.0001844,2]
[379099043,1755138641133,-620.06768601,0.0001844,2]
[379099044,1755138641142,-461.13829586,0.00018441,2]
[379099045,1755138641153,-462.01819265,0.00018441,2]
[379099046,1755138641162,-460.0,0.00018441,2]
[379099047,1755138641172,-462.3898896,0.00018441,2]
[379099048,1755138641182,-437.96728162,0.00018441,2]
[379099049,1755138641191,-460.0,0.00018441,2]
[379099050,1755138641201,-463.79532999,0.00018441,2]
[379099051,1755138641211,-463.46479589,0.00018441,2]
[379099052,1755138641220,-408.67610757,0.00018441,2]
[379099053,1755138641229,-461.87550415,0.00018441,2]
[379099054,1755138641238,-460.0,0.00018441,2]
[379099055,1755138641248,-460.0,0.00018441,2]
[379099056,1755138641257,-460.0,0.00018441,2]
[379099057,1755138641267,-460.0,0.00018441,2]
[379099058,1755138641276,-460.0,0.00018441,2]
[379099059,1755138641285,-460.0,0.00018441,2]
[379099060,1755138641294,-460.0,0.00018441,2]
[379099061,1755138641304,-460.0,0.00018441,2]
[379099062,1755138641313,-460.0,0.00018441,2]
[379099063,1755138641323,-462.12858198,0.00018441,2]
[379099064,1755138641332,-460.0,0.00018441,2]
[379099065,1755138641342,-461.65087935,0.00018442,2]
[379099066,1755138641351,-460.0,0.00018442,2]
[379099067,1755138641361,-461.78777087,0.00018442,2]
[379099068,1755138641370,-462.63609508,0.00018442,2]
[379099069,1755138641379,-461.07287376,0.00018442,2]
[379099070,1755138641389,-461.05729511,0.00018442,2]
[379099071,1755138641398,-460.0,0.00018442,2]
[379099072,1755138641407,-462.33900935,0.00018442,2]
[379099073,1755138641416,-460.0,0.00018442,2]
[379099074,1755138641429,-5230.75,0.00018442,2]
[379099075,1755138641439,-460.0,0.00018442,2]
[379099076,1755138641449,-1305.26,0.00018442,2]
[379099077,1755138641458,-460.0,0.00018442,2]
[379099078,1755138641467,-460.0,0.00018442,2]
[379099079,1755138641476,-472.74049455,0.00018442,2]
[379099080,1755138641486,-603.34,0.00018442,2]
[379099081,1755138641498,-460.0,0.00018442,2]
[379099082,1755138641508,-749.85,0.00018442,2]
[379099083,1755138641517,-8275.58,0.00018442,2]
[379099084,1755138641527,-1073.95,0.00018442,2]
[379099085,1755138641536,-460.0,0.00018442,2]
[379099086,1755138641546,-460.0,0.00018442,2]
[379099087,1755138641555,-1081.9,0.00018442,2]
[379099088,1755138641565,-4255.52,0.00018442,2]
[379099089,1755138641575,-460.0,0.00018442,2]
[379099090,1755138641584,-460.0,0.00018442,2]
[379099091,1755138641593,-460.0,0.00018442,2]
[379099092,1755138641603,-460.0,0.00018442,2]
[379099093,1755138641613,-2710.58,0.00018442,2]
[379099094,1755138641623,-368.8651446,0.00018442,2]
[379099095,1755138641632,-460.36487453,0.00018442,2]
[379099096,1755138641641,-812.39,0.00018442,2]
[379099097,1755138641651,-7335.46,0.00018442,2]
[379099098,1755138641660,-1183.19,0.00018442,2]
[379099099,1755138641669,-460.0,0.00018442,2]
[379099100,1755138641678,-460.0,0.00018442,2]
[379099101,1755138641688,-462.97071422,0.00018442,2]
[379099102,1755138641697,-460.0,0.00018442,2]
[379099103,1755138641706,-3433.48,0.00018442,2]
[379099104,1755138641715,-388.07879597,0.00018442,2]
[379099105,1755138641725,-460.0,0.00018442,2]
[379099106,1755138641735,-1096.64,0.00018442,2]
[379099107,1755138641744,-460.0,0.00018442,2]
[379099108,1755138641753,-729.04,0.00018442,2]
[379099109,1755138641762,-460.0,0.00018442,2]
[379099110,1755138641771,-977.28,0.00018442,2]
[379099111,1755138641781,-460.0,0.00018442,2]
[379099112,1755138641790,-460.0,0.00018442,2]
[379099113,1755138641799,-460.0,0.00018442,2]
[379099114,1755138641809,-460.0,0.00018442,2]
[379099115,1755138641818,-339.74096341,0.00018442,2]
[379099116,1755138641827,-500.0,0.00018442,2]
[379099117,1755138641837,-500.0,0.00018442,2]
[379099118,1755138641846,-500.0,0.00018442,2]
[379099119,1755138641857,-500.0,0.00018442,2]
[379099120,1755138641866,-500.0,0.00018442,2]
[379099121,1755138641875,-500.0,0.00018442,2]
[379099122,1755138641885,-500.0,0.00018442,2]
[379099123,1755138641895,-500.0,0.00018442,2]
[379099124,1755138641905,-500.0,0.00018442,2]
[379099125,1755138641914,-500.0,0.00018442,2]
[379099127,1755138641924,-500.0,0.00018442,2]
[379099129,1755138641935,-500.0,0.00018442,2]
[379099130,1755138641944,-500.0,0.00018442,2]
[379099131,1755138641954,-500.0,0.00018442,2]
[379099132,1755138641964,-500.0,0.00018442,2]
[379099133,1755138641973,-460.91855081,0.00018442,2]
[379099134,1755138641983,-461.97990658,0.00018443,2]
[379099135,1755138641992,-466.41601014,0.00018443,2]
[379099136,1755138642001,-460.0,0.00018443,2]
[379099138,1755138642165,-460.0,0.00018443,2]
[379099139,1755138642176,-460.0,0.00018443,2]
[379099140,1755138642185,-460.0,0.00018443,2]
[379099141,1755138642195,-460.0,0.00018443,2]
[379099142,1755138642204,-460.20741131,0.00018443,2]
[379099143,1755138642214,-460.0,0.00018443,2]
[379099144,1755138642224,-460.0,0.00018443,2]
[379099145,1755138642233,-460.0,0.00018443,2]
[379099146,1755138642243,-460.0,0.00018443,2]
[379099147,1755138642252,-706.94,0.00018443,2]
[379099148,1755138642262,-460.0,0.00018443,2]
[379099149,1755138642271,-460.0,0.00018443,2]
[379099150,1755138642280,-582.23,0.00018443,2]
[379099151,1755138642290,-460.0,0.00018443,2]
[379099152,1755138642299,-461.62382635,0.00018443,2]
[379099153,1755138642308,-460.0,0.00018443,2]
[379099154,1755138642318,-1052.9,0.00018443,2]
[379099155,1755138642328,-1052.9,0.00018443,2]
[379099156,1755138642338,-1052.9,0.00018443,2]
[379099157,1755138642347,-1052.9,0.00018443,2]
[379099158,1755138642357,-16608.45,0.00018443,2]
[379099159,1755138642366,-500.0,0.00018443,2]
[379099160,1755138642377,-1958.98555705,0.000185,2]
[379099161,1755138642387,-157.760902,0.00018598,2]
[379099162,1755138642397,-351.54350533,0.00018617,2]
[379099163,1755138642406,-460.0,0.00018715,2]
[379099164,1755138642415,-460.0,0.00018715,2]
[379099165,1755138642428,-465.16919065,0.00018715,2]
[379099166,1755138642438,-294.06012742,0.00018715,2]
[379099167,1755138642448,-460.0,0.00018715,2]
[379099168,1755138642457,-325.29800769,0.00018715,2]
[379099169,1755138642469,-465.8115751,0.00018715,2]
[379099170,1755138642479,-460.0,0.00018715,2]
[379099171,1755138642489,-460.0,0.00018715,2]
[379099172,1755138642500,-460.0,0.00018715,2]
[379099173,1755138642509,-460.0,0.00018715,2]
[379099174,1755138642519,-502.82852828,0.00018716,2]
[379099175,1755138642529,-460.0,0.00018716,2]
[379099176,1755138642539,-460.0,0.00018716,2]
[379099177,1755138642549,-5230.75,0.00018716,2]
[379099178,1755138642559,-460.0,0.00018716,2]
[379099179,1755138642568,-1305.26,0.00018716,2]
[379099180,1755138642577,-460.0,0.00018716,2]
[379099181,1755138642586,-460.0,0.00018716,2]
[379099182,1755138642595,-603.34,0.00018716,2]
[379099183,1755138642605,-460.0,0.00018716,2]
[379099184,1755138642614,-749.85,0.00018716,2]
[379099185,1755138642623,-8275.58,0.00018716,2]
[379099186,1755138642633,-1073.95,0.00018716,2]
[379099187,1755138642642,-460.0,0.00018716,2]
[379099188,1755138642652,-460.0,0.00018716,2]
[379099189,1755138642662,-1081.9,0.00018716,2]
[379099190,1755138642671,-4255.52,0.00018716,2]
[379099191,1755138642681,-460.0,0.00018716,2]
[379099192,1755138642691,-460.0,0.00018716,2]
[379099193,1755138642700,-460.0,0.00018716,2]
[379099194,1755138642709,-460.0,0.00018716,2]
[379099195,1755138642719,-2710.58,0.00018716,2]
[379099196,1755138642728,-812.39,0.00018716,2]
[379099197,1755138642738,-7335.46,0.00018716,2]
[379099198,1755138642747,-1183.19,0.00018716,2]
[379099199,1755138642757,-460.0,0.00018716,2]
[379099200,1755138642766,-460.0,0.00018716,2]
[379099201,1755138642776,-460.0,0.00018716,2]
[379099202,1755138642785,-3433.48,0.00018716,2]
[379099204,1755138642795,-1096.64,0.00018716,2]
[379099205,1755138642805,-460.0,0.00018716,2]
[379099206,1755138642815,-729.04,0.00018716,2]
[379099208,1755138642824,-460.0,0.00018716,2]
[379099209,1755138642833,-977.28,0.00018716,2]
[379099210,1755138642842,-460.0,0.00018716,2]
[379099211,1755138642852,-461.83908591,0.00018716,2]
[379099213,1755138642861,-460.87916973,0.00018716,2]
[379099215,1755138642870,-460.0,0.00018716,2]
[379099217,1755138642880,-500.0,0.00018717,2]
[379099219,1755138642889,-197.08532036,0.00018717,2]
[379099222,1755138642898,-460.0,0.00018717,2]
[379099225,1755138642907,-460.0,0.00018717,2]
[379099229,1755138642917,-460.0,0.00018717,2]
[379099232,1755138642927,-581.1168545,0.00018717,2]
[379099236,1755138642936,-460.0,0.00018717,2]
[379099239,1755138642946,-460.0,0.00018717,2]
[379099240,1755138642955,-460.0,0.00018717,2]
[379099241,1755138642964,-460.0,0.00018717,2]
[379099243,1755138642973,-461.98410725,0.00018717,2]
[379099244,1755138642983,-706.94,0.00018717,2]
[379099245,1755138642992,-460.0,0.00018717,2]
[379099246,1755138643001,-460.0,0.00018717,2]
[379099247,1755138643011,-582.23,0.00018717,2]
[379099248,1755138643020,-460.0,0.00018717,2]
[379099249,1755138643029,-460.0,0.00018717,2]
[379099250,1755138643038,-16608.45,0.00018717,2]
[379099251,1755138643049,-666.63033475,0.000189,2]
[379099252,1755138643059,-462.95059864,0.00018989,2]
[379099253,1755138643068,-460.0,0.00018989,2]
[379099254,1755138643078,-463.21648076,0.00018989,2]
[379099255,1755138643087,-460.0,0.00018989,2]
[379099256,1755138643097,-460.0,0.00018989,2]
[379099257,1755138643107,-460.0,0.00018989,2]
[379099258,1755138643116,-460.0,0.00018989,2]
[379099259,1755138643125,-460.0,0.0001899,2]
[379099260,1755138643135,-460.0,0.0001899,2]
[379099261,1755138643144,-5230.75,0.0001899,2]
[379099262,1755138643155,-460.0,0.0001899,2]
[379099263,1755138643165,-1305.26,0.0001899,2]
[379099264,1755138643174,-460.0,0.0001899,2]
[379099265,1755138643183,-462.12788353,0.0001899,2]
[379099266,1755138643194,-603.34,0.0001899,2]
[379099267,1755138643204,-460.0,0.0001899,2]
[379099268,1755138643215,-749.85,0.0001899,2]
[379099269,1755138643224,-8275.58,0.0001899,2]
[379099270,1755138643234,-1073.95,0.0001899,2]
[379099272,1755138643247,-460.0,0.0001899,2]
[379099274,1755138643257,-460.0,0.0001899,2]
[379099276,1755138643267,-1081.9,0.0001899,2]
[379099278,1755138643277,-4255.52,0.0001899,2]
[379099279,1755138643287,-460.0,0.0001899,2]
[379099280,1755138643297,-460.0,0.0001899,2]
[379099281,1755138643309,-460.0,0.0001899,2]
[379099282,1755138643318,-460.0,0.0001899,2]
[379099283,1755138643328,-2710.58,0.0001899,2]
[379099285,1755138643337,-812.39,0.0001899,2]
[379099287,1755138643347,-7335.46,0.0001899,2]
[379099289,1755138643356,-1183.19,0.0001899,2]
[379099291,1755138643366,-460.0,0.0001899,2]
[379099292,1755138643375,-460.0,0.0001899,2]
[379099293,1755138643385,-460.0,0.0001899,2]
[379099294,1755138643395,-3433.48,0.0001899,2]
[379099295,1755138643404,-1096.64,0.0001899,2]
[379099296,1755138643414,-460.0,0.0001899,2]
[379099297,1755138643426,-729.04,0.0001899,2]
[379099298,1755138643436,-468.58545011,0.0001899,2]
[379099299,1755138643446,-977.28,0.0001899,2]
[379099301,1755138643456,-460.0,0.0001899,2]
[379099303,1755138643466,-460.0,0.0001899,2]
[379099305,1755138643476,-500.0,0.00018991,2]
[379099308,1755138643486,-460.0,0.00018991,2]
[379099311,1755138643498,-460.0,0.00018991,2]
[379099314,1755138643508,-460.0,0.00018991,2]
[379099316,1755138643517,-460.0,0.00018991,2]
[379099318,1755138643527,-460.0,0.00018991,2]
[379099320,1755138643536,-462.410122,0.00018991,2]
[379099322,1755138643548,-460.0,0.00018991,2]
[379099324,1755138643558,-706.94,0.00018991,2]
[379099326,1755138643567,-461.81897344,0.00018991,2]
[379099328,1755138643577,-460.0,0.00018991,2]
[379099330,1755138643588,-582.23,0.00018991,2]
[379099332,1755138643598,-460.0,0.00018991,2]
[379099334,1755138643607,-460.0,0.00018991,2]
[379099336,1755138643618,-16608.45,0.00018991,2]
[379099338,1755138643628,-200.15,0.00019,2]
[379099340,1755138643638,-500.0,0.00019006,2]
[379099343,1755138643647,-500.22852671,0.00019006,2]
[379099345,1755138643657,-500.0,0.00019006,2]
[379099347,1755138643667,-500.84138769,0.00019006,2]
[379099349,1755138643677,-500.22454005,0.00019006,2]
[379099351,1755138643687,-1052.9,0.00019077,2]
[379099353,1755138643697,-1052.9,0.00019077,2]
[379099354,1755138643706,-1052.9,0.00019077,2]
[379099356,1755138643716,-1052.9,0.00019077,2]
[379099358,1755138643725,-1052.9,0.00019077,2]
[379099360,1755138643736,-227.930699,0.00019078,2]
[379099363,1755138643746,-151.0,0.00019078,2]
[379099365,1755138643757,-151.0,0.00019078,2]
[379099366,1755138643766,-367.582489,0.00019078,2]
[379099368,1755138643776,-367.582489,0.00019078,2]
[379099369,1755138643786,-367.582489,0.00019078,2]
[379099370,1755138643797,-367.582489,0.00019078,2]
[379099371,1755138643807,-151.0,0.00019078,2]
[379099372,1755138643818,-151.0,0.00019078,2]
[379099373,1755138643827,-1116.859933,0.00019078,2]
[379099374,1755138643837,-1116.859933,0.00019078,2]
[379099375,1755138643847,-152.232261,0.00019078,2]
[379099376,1755138643857,-1116.859933,0.00019078,2]
[379099377,1755138643866,-1116.859933,0.00019078,2]
[379099378,1755138643875,-151.0,0.00019078,2]
[379099379,1755138643886,-151.0,0.00019078,2]
[379099380,1755138643896,-151.0,0.00019078,2]
[379099381,1755138643905,-191.014206,0.00019078,2]
[379099382,1755138643915,-151.0,0.00019078,2]
[379099383,1755138643925,-151.0,0.00019078,2]
[379099384,1755138643934,-151.0,0.00019078,2]
[379099385,1755138643943,-151.0,0.00019078,2]
[379099386,1755138643953,-153.797511,0.00019078,2]
[379099387,1755138643963,-806.44,0.00019079,3]
[379099388,1755138643972,-502.75763747,0.00019117,2]
[379099389,1755138643982,-1052.9,0.00019166,2]
[379099390,1755138643991,-151.0,0.00019167,2]
[379099391,1755138644000,-367.582489,0.00019167,2]
[379099393,1755138644010,-367.582489,0.00019167,2]
[379099395,1755138644019,-151.906222,0.00019167,2]
[379099397,1755138644028,-1116.859933,0.00019167,2]
[379099399,1755138644038,-1116.859933,0.00019167,2]
[379099401,1755138644048,-151.0,0.00019167,2]